[Event "55th Biel Festival MTO 2022"]
[Site "Biel"]
[Date "2022.07.15"]
[Round "2.34"]
[White "Costa, Jean-Luc"]
[Black "Foerster-Yialamas Lucas"]
[Result "0-1"]
[ECO "D91"]
[WhiteElo "2417"]
[BlackElo "2147"]
[Annotator "ChessBase"]
[PlyCount "116"]
[EventDate "2022.07.13"]
[EventType "swiss"]
[EventCountry "SUI"]
[SourceTitle "playchess.com"]
[Source "ChessBase"]
[SourceQuality "1"]
[TimeControl "40/5400+30:1800+30"]

1. d4 {[%emt 0:01:16]} Nf6 {[%emt 0:00:06]} 2. c4 {[%emt 0:00:14]} g6 {[%emt 0:00:05]} 3. Nf3 {[%emt 0:00:27]} Bg7 {[%emt 0:00:04]} 4. Nc3 {[%emt 0:00:25]} d5 {[%emt 0:00:06]} 5. Bg5 {[%emt 0:00:43]} Ne4 {[%emt 0:00:11]} 6. cxd5 {[%emt 0:00:55]} Nxg5 {[%emt 0:00:06]} 7. Nxg5 {[%emt 0:00:08]} e6 {[%emt 0:00:04]} 8. Nf3 {[%emt 0:00:42]} exd5 {[%emt 0:00:04]} 9. b4 {[%emt 0:00:31]} O-O {[%emt 0:02:28]} 10. e3 {[%emt 0:00:13]} Re8 {[%emt 0:01:48]} 11. Be2 {[%emt 0:00:15]} c6 {[%emt 0:03:21]} 12. Rc1 {[%emt 0:02:23]} b5 {[%emt 0:01:56]} 13. a4 {[%emt 0:03:05]} a5 {[%emt 0:00:43]} 14. axb5 {[%emt 0:00:42]} axb4 {[%emt 0:00:29]} 15. Nb1 {[%emt 0:04:24]} cxb5 {[%emt 0:21:31]} 16. Nbd2 {[%emt 0:05:44]} Ra3 {[%emt 0:04:15]} 17. Bxb5 {[%emt 0:04:20]} Re7 {[%emt 0:08:35]} 18. Nb3 {[%emt 0:03:25]} Bg4 {[%emt 0:08:15]} 19. O-O {[%emt 0:02:09]} Bxf3 {[%emt 0:04:19]} 20. gxf3 {[%emt 0:00:33]} Rb7 {[%emt 0:00:53]} 21. Be2 {[%emt 0:00:52]} Bf8 {[%emt 0:00:45]} 22. f4 {[%emt 0:05:37]} Na6 {[%emt 0:12:13]} 23. Bf3 {[%emt 0:02:59]} Rb6 {[%emt 0:11:00]} 24. Kh1 {[%emt 0:06:08]} Nc7 {[%emt 0:02:29]} 25. Qc2 {[%emt 0:01:14]} Nb5 {[%emt 0:02:55]} 26. Nc5 {[%emt 0:02:29]} Nxd4 {[%emt 0:01:48]} 27. Qd1 {[%emt 0:01:16]} Nxf3 {[%emt 0:00:53]} 28. Qxf3 {[%emt 0:00:07]} b3 {[%emt 0:01:06]} 29. e4 {[%emt 0:08:21]} dxe4 {[%emt 0:00:52]} 30. Qe3 {[%emt 0:00:27]} Rb5 {[%emt 0:03:39]} 31. Rfd1 {[%emt 0:05:49]} Qa8 {[%emt 0:00:37]} 32. Nd7 {[%emt 0:01:11]} b2 {[%emt 0:03:37]} 33. Nf6+ {[%emt 0:03:09]} Kh8 {[%emt 0:00:05]} 34. Qd4 {[%emt 0:01:08]} Rb4 {[%emt 0:03:23]} 35. Qe5 {[%emt 0:02:05]} e3+ {[%emt 0:00:25]} 36. Kg1 {[%emt 0:03:21]} exf2+ {[%emt 0:00:12]} 37. Kf1 {[%emt 0:05:33]} Qh1+ {[%emt 0:00:58]} 38. Ke2 {[%emt 0:02:00]} f1=Q+ {[%emt 0:00:14]} 39. Rxf1 {[%emt 0:00:39]} Qxh2+ {[%emt 0:02:54]} 40. Rf2 {[%emt 0:01:20]} Re3+ {[%emt 0:00:32]} 41. Qxe3 {[%emt 0:31:21]} bxc1=Q {[%emt 0:03:47]} 42. Qxc1 {[%emt 0:00:00]} Qh3 {[%emt 0:02:35]} 43. Qa1 {[%emt 0:00:00]} Qb3 {[%emt 0:00:20]} 44. Nd7+ {[%emt 0:00:00]} Qb2+ {[%emt 0:00:06]} 45. Qxb2+ {[%emt 0:00:00]} Rxb2+ {[%emt 0:00:11]} 46. Kf3 {[%emt 0:00:00]} Rxf2+ {[%emt 0:00:14]} 47. Kxf2 {[%emt 0:00:00]} Bd6 {[%emt 0:00:06]} 48. f5 {[%emt 0:00:00]} Kg7 {[%emt 0:02:42]} 49. Kf3 {[%emt 0:00:00]} gxf5 {[%emt 0:05:04]} 50. Nb6 {[%emt 0:00:00]} h5 {[%emt 0:00:21]} 51. Nd5 {[%emt 0:00:00]} h4 {[%emt 0:02:02]} 52. Kg2 {[%emt 0:05:36]} Kg6 {[%emt 0:01:40]} 53. Nc3 {[%emt 0:04:20]} Kg5 {[%emt 0:01:17]} 54. Ne2 {[%emt 0:02:32]} Kg4 {[%emt 0:00:58]} 55. Ng1 {[%emt 0:05:00]} h3+ {[%emt 0:03:11]} 56. Kh1 {[%emt 0:05:23]} f4 {[%emt 0:00:21]} 57. Ne2 {[%emt 0:02:42]} f3 {[%emt 0:00:08]} 58. Ng1 {[%emt 0:00:27]} f2 {[%emt 0:00:17]} 0-1

[Event "55th Biel Festival MTO 2022"]
[Site "Biel"]
[Date "2022.07.15"]
[Round "2.37"]
[White "Collin Moritz Valentin"]
[Black "Kolbus Dietmar"]
[Result "0-1"]
[ECO "E60"]
[WhiteElo "2129"]
[BlackElo "2285"]
[Annotator "ChessBase"]
[PlyCount "110"]
[EventDate "2022.07.13"]
[EventType "swiss"]
[EventCountry "SUI"]
[SourceTitle "playchess.com"]
[Source "ChessBase"]
[SourceQuality "1"]
[TimeControl "40/5400+30:1800+30"]

1. d4 {[%emt 0:00:00]} Nf6 {[%emt 0:00:00]} 2. c4 {[%emt 0:00:22]} g6 {[%emt 0:00:12]} 3. h4 {[%emt 0:01:05]} Bg7 {[%emt 0:00:06]} 4. Nc3 {[%emt 0:00:29]} d6 {[%emt 0:00:07]} 5. e4 {[%emt 0:05:45]} Na6 {[%emt 0:00:07]} 6. Be2 {[%emt 0:01:15]} c5 {[%emt 0:02:04]} 7. d5 {[%emt 0:07:28]} h5 {[%emt 0:01:14]} 8. Bg5 {[%emt 0:00:22]} Nh7 {[%emt 0:01:27]} 9. Be3 {[%emt 0:04:05]} Bxc3+ {[%emt 0:05:01]} 10. bxc3 {[%emt 0:02:49]} Qa5 {[%emt 0:00:11]} 11. Qb3 {[%emt 0:00:08]} Nc7 {[%emt 0:15:10]} 12. Nf3 {[%emt 0:00:39]} Bg4 {[%emt 0:04:04]} 13. O-O {[%emt 0:02:19]} b6 {[%emt 0:04:50]} 14. Qc2 {[%emt 0:07:41]} O-O-O {[%emt 0:11:43]} 15. a4 {[%emt 0:01:56]} f6 {[%emt 0:06:01]} 16. Nd2 {[%emt 0:09:22]} Bxe2 {[%emt 0:07:21]} 17. Nb3 {[%emt 0:01:30]} Qa6 {[%emt 0:00:08]} 18. Qxe2 {[%emt 0:00:44]} Nf8 {[%emt 0:00:09]} 19. Rfb1 {[%emt 0:02:13]} Nd7 {[%emt 0:04:18]} 20. a5 {[%emt 0:03:38]} b5 {[%emt 0:05:47]} 21. cxb5 {[%emt 0:00:52]} Qxb5 {[%emt 0:08:04]} 22. Qxb5 {[%emt 0:00:18]} Nxb5 {[%emt 0:01:47]} 23. Nxc5 {[%emt 0:00:03]} Nxc3 {[%emt 0:05:05]} 24. Ne6 {[%emt 0:02:23]} Nxb1 {[%emt 0:03:33]} 25. Rxb1 {[%emt 0:00:35]} a6 {[%emt 0:00:07]} 26. Rc1+ {[%emt 0:12:32]} Kb8 {[%emt 0:02:22]} 27. Rc7 {[%emt 0:00:19]} Nc5 {[%emt 0:00:14]} 28. Bxc5 {[%emt 0:06:00]} dxc5 {[%emt 0:02:26]} 29. Rxe7 {[%emt 0:00:02]} Rde8 {[%emt 0:00:30]} 30. Rf7 {[%emt 0:01:31]} c4 {[%emt 0:03:06]} 31. Kf1 {[%emt 0:00:22]} c3 {[%emt 0:00:58]} 32. Ke2 {[%emt 0:02:58]} c2 {[%emt 0:01:26]} 33. Kd2 {[%emt 0:00:28]} Rc8 {[%emt 0:00:11]} 34. Kc1 {[%emt 0:00:05]} Rc4 {[%emt 0:00:11]} 35. d6 {[%emt 0:00:05]} Rxe4 {[%emt 0:04:06]} 36. Nc5 {[%emt 0:02:05]} Re2 {[%emt 0:00:47]} 37. Nxa6+ {[%emt 0:07:05]} Ka8 {[%emt 0:01:05]} 38. d7 {[%emt 0:00:18]} Rd8 {[%emt 0:01:16]} 39. Nb4 {[%emt 0:00:30]} Kb7 {[%emt 0:00:56]} 40. a6+ {[%emt 0:00:22]} Kc7 {[%emt 0:01:04]} 41. Nxc2 {[%emt 0:31:00]} Re6 {[%emt 0:31:05]} 42. Nb4 {[%emt 0:00:00]} Rd6 {[%emt 0:00:00]} 43. Kc2 {[%emt 0:00:00]} R8xd7 {[%emt 0:00:00]} 44. Rxd7+ {[%emt 0:00:00]} Rxd7 {[%emt 0:00:00]} 45. Nd3 {[%emt 0:00:00]} Rd4 {[%emt 0:00:00]} 46. g3 {[%emt 0:00:00]} g5 {[%emt 0:00:00]} 47. hxg5 {[%emt 0:00:00]} fxg5 {[%emt 0:00:00]} 48. f4 {[%emt 0:00:00]} h4 {[%emt 0:00:00]} 49. gxh4 {[%emt 0:07:25]} gxh4 {[%emt 0:00:55]} 50. f5 {[%emt 0:00:14]} h3 {[%emt 0:01:47]} 51. f6 {[%emt 0:00:07]} h2 {[%emt 0:00:39]} 52. f7 {[%emt 0:00:11]} Rd8 {[%emt 0:00:17]} 53. Nf2 {[%emt 0:00:05]} Rf8 {[%emt 0:00:58]} 54. Kd2 {[%emt 0:00:10]} Rxf7 {[%emt 0:00:54]} 55. Nh1 {[%emt 0:00:06]} Rf1 {[%emt 0:00:16]} 0-1

[Event "55th Biel Festival MTO 2022"]
[Site "Biel"]
[Date "2022.07.15"]
[Round "2.38"]
[White "Bewersdorff Oliver"]
[Black "Shubin Daniel"]
[Result "1/2-1/2"]
[ECO "E08"]
[WhiteElo "2280"]
[BlackElo "2120"]
[Annotator "ChessBase"]
[PlyCount "48"]
[EventDate "2022.07.13"]
[EventType "swiss"]
[EventCountry "SUI"]
[SourceTitle "playchess.com"]
[Source "ChessBase"]
[SourceQuality "1"]
[TimeControl "40/5400+30:1800+30"]

1. Nf3 {[%emt 0:00:09]} d5 {[%emt 0:00:30]} 2. g3 {[%emt 0:00:31]} Nf6 {[%emt 0:00:11]} 3. Bg2 {[%emt 0:00:05]} e6 {[%emt 0:00:09]} 4. O-O {[%emt 0:00:05]} Be7 {[%emt 0:00:13]} 5. d4 {[%emt 0:00:03]} O-O {[%emt 0:01:39]} 6. c4 {[%emt 0:00:36]} c6 {[%emt 0:00:07]} 7. Qc2 {[%emt 0:00:04]} b6 {[%emt 0:00:13]} 8. Bf4 {[%emt 0:00:07]} Nbd7 {[%emt 0:00:34]} 9. Rd1 {[%emt 0:03:40]} Bb7 {[%emt 0:05:27]} 10. Nc3 {[%emt 0:04:26]} Nh5 {[%emt 0:02:41]} 11. Bc1 {[%emt 0:08:00]} Nhf6 {[%emt 0:04:25]} 12. Bf4 {[%emt 0:04:56]} Nh5 {[%emt 0:17:22]} 13. Bc1 {[%emt 0:03:36]} Nhf6 {[%emt 0:00:07]} 14. b3 {[%emt 0:00:58]} Rc8 {[%emt 0:00:17]} 15. Bb2 {[%emt 0:00:05]} c5 {[%emt 0:02:12]} 16. cxd5 {[%emt 0:09:57]} cxd4 {[%emt 0:02:50]} 17. Nxd4 {[%emt 0:08:26]} Nxd5 {[%emt 0:05:22]} 18. a3 {[%emt 0:01:47]} Nxc3 {[%emt 0:07:53]} 19. Bxc3 {[%emt 0:06:08]} Bxg2 {[%emt 0:00:30]} 20. Kxg2 {[%emt 0:00:19]} Qc7 {[%emt 0:00:17]} 21. Rdc1 {[%emt 0:01:28]} Qb7+ {[%emt 0:02:32]} 22. Nf3 {[%emt 0:03:22]} Ne5 {[%emt 0:08:58]} 23. Qb2 {[%emt 0:06:35]} Nxf3 {[%emt 0:02:04]} 24. exf3 {[%emt 0:01:16]} Rxc3 {[%emt 0:00:06]} 1/2-1/2

[Event "55th Biel Festival MTO 2022"]
[Site "Biel"]
[Date "2022.07.15"]
[Round "3.1"]
[White "Aryan Chopra"]
[Black "Fedoseev Vladimir"]
[Result "1-0"]
[ECO "C18"]
[WhiteElo "2610"]
[BlackElo "2686"]
[Annotator "ChessBase"]
[PlyCount "177"]
[EventDate "2022.07.13"]
[EventType "swiss"]
[EventCountry "SUI"]
[SourceTitle "playchess.com"]
[Source "ChessBase"]
[SourceQuality "1"]
[TimeControl "40/5400+30:1800+30"]

1. e4 {[%emt 0:00:03]} e6 {[%emt 0:02:13]} 2. d4 {[%emt 0:00:05]} d5 {[%emt 0:00:10]} 3. Nc3 {[%emt 0:00:14]} Bb4 {[%emt 0:00:14]} 4. e5 {[%emt 0:00:12]} c5 {[%emt 0:00:28]} 5. a3 {[%emt 0:00:06]} Ba5 {[%emt 0:00:52]} 6. b4 {[%emt 0:01:21]} cxd4 {[%emt 0:00:13]} 7. Qg4 {[%emt 0:06:19]} Kf8 {[%emt 0:04:51]} 8. Nb5 {[%emt 0:03:39]} Bc7 {[%emt 0:00:09]} 9. Qxd4 {[%emt 0:05:21]} Ne7 {[%emt 0:06:12]} 10. Nxc7 {[%emt 0:10:10]} Qxc7 {[%emt 0:00:02]} 11. Nf3 {[%emt 0:00:05]} Bd7 {[%emt 0:07:46]} 12. Bd3 {[%emt 0:05:09]} Nbc6 {[%emt 0:00:44]} 13. Qf4 {[%emt 0:04:11]} Ng6 {[%emt 0:00:42]} 14. Bxg6 {[%emt 0:00:08]} hxg6 {[%emt 0:00:06]} 15. O-O {[%emt 0:03:50]} Kg8 {[%emt 0:03:39]} 16. Bb2 {[%emt 0:11:09]} Ne7 {[%emt 0:04:55]} 17. Rac1 {[%emt 0:00:22]} Qc4 {[%emt 0:03:01]} 18. Bd4 {[%emt 0:01:14]} b6 {[%emt 0:04:39]} 19. Rfd1 {[%emt 0:08:22]} Rf8 {[%emt 0:02:40]} 20. Rd3 {[%emt 0:02:42]} Qc7 {[%emt 0:01:37]} 21. Rc3 {[%emt 0:03:44]} Qb8 {[%emt 0:00:02]} 22. Re1 {[%emt 0:01:20]} Ba4 {[%emt 0:04:25]} 23. Ng5 {[%emt 0:07:59]} Qd8 {[%emt 0:03:28]} 24. g4 {[%emt 0:05:39]} Nc6 {[%emt 0:03:44]} 25. Nf3 {[%emt 0:00:04]} Qd7 {[%emt 0:05:31]} 26. Kg2 {[%emt 0:04:10]} Rc8 {[%emt 0:01:19]} 27. Ng5 {[%emt 0:01:49]} Nd8 {[%emt 0:07:34]} 28. Rxc8 {[%emt 0:00:16]} Qxc8 {[%emt 0:00:01]} 29. Re3 {[%emt 0:00:07]} Bb5 {[%emt 0:00:35]} 30. Rc3 {[%emt 0:04:23]} Qd7 {[%emt 0:00:01]} 31. Qd2 {[%emt 0:01:30]} Kf8 {[%emt 0:02:19]} 32. Rf3 {[%emt 0:00:32]} Ke8 {[%emt 0:00:26]} 33. h3 {[%emt 0:01:00]} Qe7 {[%emt 0:01:26]} 34. Kg3 {[%emt 0:04:01]} Rf8 {[%emt 0:04:17]} 35. Nh7 {[%emt 0:00:29]} Rh8 {[%emt 0:00:11]} 36. Ng5 {[%emt 0:00:03]} Qc7 {[%emt 0:00:50]} 37. Qf4 {[%emt 0:01:31]} Be2 {[%emt 0:01:17]} 38. Rc3 {[%emt 0:00:23]} Bc4 {[%emt 0:00:06]} 39. Rf3 {[%emt 0:02:53]} Bb5 {[%emt 0:01:20]} 40. Kh2 {[%emt 0:02:02]} Qe7 {[%emt 0:09:02]} 41. Qd2 {[%emt 0:05:10]} Ba4 {[%emt 0:02:02]} 42. Kg3 {[%emt 0:04:02]} Qc7 {[%emt 0:03:39]} 43. Qf4 {[%emt 0:02:27]} Qd7 {[%emt 0:00:21]} 44. Qd2 {[%emt 0:02:44]} Bb5 {[%emt 0:03:08]} 45. Kg2 {[%emt 0:01:32]} Qc7 {[%emt 0:01:02]} 46. Qf4 {[%emt 0:00:21]} Qe7 {[%emt 0:03:05]} 47. Qd2 {[%emt 0:00:40]} Qb7 {[%emt 0:00:36]} 48. Kh2 {[%emt 0:00:47]} Qa6 {[%emt 0:03:14]} 49. Qf4 {[%emt 0:03:43]} Rf8 {[%emt 0:08:27]} 50. Nh7 {[%emt 0:00:25]} Rh8 {[%emt 0:01:18]} 51. Ng5 {[%emt 0:00:05]} Qb7 {[%emt 0:01:08]} 52. Qd2 {[%emt 0:00:19]} Qb8 {[%emt 0:00:46]} 53. Qf4 {[%emt 0:00:31]} Kd7 {[%emt 0:01:58]} 54. Qg3 {[%emt 0:02:31]} Rf8 {[%emt 0:00:29]} 55. c3 {[%emt 0:01:52]} Qc7 {[%emt 0:01:41]} 56. Qh4 {[%emt 0:01:55]} Kc8 {[%emt 0:00:39]} 57. Qh7 {[%emt 0:00:29]} f6 {[%emt 0:00:43]} 58. Kg1 {[%emt 0:00:32]} f5 {[%emt 0:02:03]} 59. Qxg6 {[%emt 0:00:59]} Be8 {[%emt 0:00:36]} 60. Qh7 {[%emt 0:00:05]} Qe7 {[%emt 0:00:06]} 61. h4 {[%emt 0:03:42]} fxg4 {[%emt 0:00:07]} 62. Rxf8 {[%emt 0:00:06]} Qxf8 {[%emt 0:00:05]} 63. Kg2 {[%emt 0:00:09]} Nc6 {[%emt 0:03:27]} 64. Nxe6 {[%emt 0:02:21]} Qf3+ {[%emt 0:00:08]} 65. Kg1 {[%emt 0:00:05]} Qd1+ {[%emt 0:03:45]} 66. Kg2 {[%emt 0:00:43]} Qf3+ {[%emt 0:00:20]} 67. Kg1 {[%emt 0:00:01]} Qd1+ {[%emt 0:00:21]} 68. Kh2 {[%emt 0:02:46]} g3+ {[%emt 0:00:27]} 69. fxg3 {[%emt 0:00:21]} Qe2+ {[%emt 0:00:07]} 70. Kh3 {[%emt 0:00:19]} Qf1+ {[%emt 0:01:26]} 71. Kg4 {[%emt 0:01:44]} Qe2+ {[%emt 0:09:06]} 72. Kg5 {[%emt 0:00:49]} Nxd4 {[%emt 0:01:21]} 73. cxd4 {[%emt 0:01:30]} Qe3+ {[%emt 0:00:06]} 74. Nf4 {[%emt 0:00:57]} Qxg3+ {[%emt 0:00:05]} 75. Kf5 {[%emt 0:00:30]} Kb7 {[%emt 0:02:37]} 76. Qg8 {[%emt 0:00:15]} Bg6+ {[%emt 0:01:42]} 77. Ke6 {[%emt 0:01:36]} Be4 {[%emt 0:02:05]} 78. Qf7+ {[%emt 0:00:15]} Ka6 {[%emt 0:00:06]} 79. Kd6 {[%emt 0:00:43]} Qxa3 {[%emt 0:01:23]} 80. Nxd5 {[%emt 0:00:39]} Qd3 {[%emt 0:00:19]} 81. b5+ {[%emt 0:01:02]} Kxb5 {[%emt 0:00:59]} 82. Qd7+ {[%emt 0:00:01]} Ka5 {[%emt 0:00:37]} 83. Qxa7+ {[%emt 0:00:02]} Qa6 {[%emt 0:00:01]} 84. Qxa6+ {[%emt 0:00:04]} Kxa6 {[%emt 0:00:16]} 85. e6 {[%emt 0:00:07]} Bg6 {[%emt 0:00:05]} 86. Nc7+ {[%emt 0:00:30]} Ka5 {[%emt 0:00:03]} 87. d5 {[%emt 0:00:15]} b5 {[%emt 0:00:30]} 88. Nxb5 {[%emt 0:00:07]} Kxb5 {[%emt 0:00:00]} 89. Ke7 {[%emt 0:00:05]} 1-0

[Event "55th Biel Festival MTO 2022"]
[Site "Biel"]
[Date "2022.07.15"]
[Round "3.2"]
[White "Iniyan P"]
[Black "Sargsyan Shant"]
[Result "1/2-1/2"]
[ECO "D38"]
[WhiteElo "2533"]
[BlackElo "2661"]
[Annotator "ChessBase"]
[PlyCount "30"]
[EventDate "2022.07.13"]
[EventType "swiss"]
[EventCountry "SUI"]
[SourceTitle "playchess.com"]
[Source "ChessBase"]
[SourceQuality "1"]
[TimeControl "40/5400+30:1800+30"]

1. d4 {[%emt 0:14:40]} Nf6 {[%emt 0:01:33]} 2. c4 {[%emt 0:00:07]} e6 {[%emt 0:00:12]} 3. Nf3 {[%emt 0:00:05]} d5 {[%emt 0:00:29]} 4. Nc3 {[%emt 0:00:06]} Bb4 {[%emt 0:00:27]} 5. Bg5 {[%emt 0:00:06]} h6 {[%emt 0:00:51]} 6. Bxf6 {[%emt 0:00:07]} Qxf6 {[%emt 0:00:10]} 7. Qa4+ {[%emt 0:00:04]} Nc6 {[%emt 0:00:30]} 8. e3 {[%emt 0:00:03]} O-O {[%emt 0:00:40]} 9. Be2 {[%emt 0:00:07]} dxc4 {[%emt 0:01:47]} 10. O-O {[%emt 0:00:11]} Bd7 {[%emt 0:03:56]} 11. Bxc4 {[%emt 0:00:10]} Bxc3 {[%emt 0:00:17]} 12. bxc3 {[%emt 0:00:06]} Rfd8 {[%emt 0:00:22]} 13. Qa3 {[%emt 0:02:03]} Qe7 {[%emt 0:01:05]} 14. Qb2 {[%emt 0:00:11]} Na5 {[%emt 0:02:19]} 15. Be2 {[%emt 0:01:40]} c5 {[%emt 0:01:08]} 1/2-1/2

[Event "55th Biel Festival MTO 2022"]
[Site "Biel"]
[Date "2022.07.15"]
[Round "3.3"]
[White "Shevchenko Kirill"]
[Black "Visakh N R"]
[Result "0-1"]
[ECO "C54"]
[WhiteElo "2654"]
[BlackElo "2503"]
[Annotator "ChessBase"]
[PlyCount "73"]
[EventDate "2022.07.13"]
[EventType "swiss"]
[EventCountry "SUI"]
[SourceTitle "playchess.com"]
[Source "ChessBase"]
[SourceQuality "1"]
[TimeControl "40/5400+30:1800+30"]

1. e4 {[%emt 0:00:04]} e5 {[%emt 0:00:13]} 2. Nf3 {[%emt 0:00:06]} Nc6 {[%emt 0:00:08]} 3. Bc4 {[%emt 0:00:07]} Bc5 {[%emt 0:00:07]} 4. c3 {[%emt 0:00:14]} Nf6 {[%emt 0:00:07]} 5. d3 {[%emt 0:00:03]} a6 {[%emt 0:00:18]} 6. O-O {[%emt 0:01:10]} d6 {[%emt 0:01:41]} 7. Bb3 {[%emt 0:00:47]} Ba7 {[%emt 0:00:54]} 8. Nbd2 {[%emt 0:00:43]} h6 {[%emt 0:04:41]} 9. Re1 {[%emt 0:08:34]} g5 {[%emt 0:01:10]} 10. d4 {[%emt 0:18:05]} g4 {[%emt 0:01:00]} 11. Nh4 {[%emt 0:03:38]} exd4 {[%emt 0:13:53]} 12. Nf1 {[%emt 0:21:29]} Be6 {[%emt 0:06:23]} 13. Ng3 {[%emt 0:02:50]} Qd7 {[%emt 0:04:48]} 14. Ngf5 {[%emt 0:05:56]} O-O-O {[%emt 0:01:11]} 15. Nxd4 {[%emt 0:07:33]} Nxd4 {[%emt 0:09:13]} 16. cxd4 {[%emt 0:00:04]} Bxb3 {[%emt 0:00:07]} 17. Qxb3 {[%emt 0:06:50]} Rde8 {[%emt 0:02:03]} 18. d5 {[%emt 0:03:26]} Nxe4 {[%emt 0:05:05]} 19. Be3 {[%emt 0:00:33]} Bxe3 {[%emt 0:05:30]} 20. Qxe3 {[%emt 0:00:18]} Kb8 {[%emt 0:01:26]} 21. Qf4 {[%emt 0:06:17]} Nc5 {[%emt 0:02:02]} 22. Nf5 {[%emt 0:03:03]} h5 {[%emt 0:02:44]} 23. Qg5 {[%emt 0:05:38]} f6 {[%emt 0:17:25]} 24. Rxe8+ {[%emt 0:01:09]} Rxe8 {[%emt 0:04:01]} 25. Qxf6 {[%emt 0:01:37]} Ne4 {[%emt 0:02:35]} 26. Qg6 {[%emt 0:00:02]} Re5 {[%emt 0:00:10]} 27. Nd4 {[%emt 0:02:18]} Qa4 {[%emt 0:00:33]} 28. Ne6 {[%emt 0:00:32]} Qc2 {[%emt 0:03:21]} 29. Rf1 {[%emt 0:00:42]} Qc4 {[%emt 0:00:56]} 30. Re1 {[%emt 0:01:11]} Nc3 {[%emt 0:05:49]} 31. Ra1 {[%emt 0:00:19]} Nxd5 {[%emt 0:01:04]} 32. Nf8 {[%emt 0:00:40]} Ka7 {[%emt 0:00:17]} 33. Qf7 {[%emt 0:00:28]} Qe4 {[%emt 0:00:38]} 34. Rf1 {[%emt 0:00:31]} Nf4 {[%emt 0:00:07]} 35. f3 {[%emt 0:00:01]} Qd4+ {[%emt 0:00:41]} 36. Kh1 {[%emt 0:00:05]} Qf2 {[%emt 0:00:18]} 37. Rg1 {[%emt 0:00:11]} 0-1

[Event "55th Biel Festival MTO 2022"]
[Site "Biel"]
[Date "2022.07.15"]
[Round "3.4"]
[White "Gagare Shardul"]
[Black "Motylev Alexander"]
[Result "1/2-1/2"]
[ECO "E11"]
[WhiteElo "2514"]
[BlackElo "2632"]
[Annotator "ChessBase"]
[PlyCount "20"]
[EventDate "2022.07.13"]
[EventType "swiss"]
[EventCountry "SUI"]
[SourceTitle "playchess.com"]
[Source "ChessBase"]
[SourceQuality "1"]
[TimeControl "40/5400+30:1800+30"]

1. d4 {[%emt 0:07:27]} Nf6 {[%emt 0:00:22]} 2. c4 {[%emt 0:00:20]} e6 {[%emt 0:00:07]} 3. Nf3 {[%emt 0:00:05]} d5 {[%emt 0:00:06]} 4. g3 {[%emt 0:00:43]} Be7 {[%emt 0:00:39]} 5. Bg2 {[%emt 0:00:19]} O-O {[%emt 0:00:08]} 6. O-O {[%emt 0:00:10]} c6 {[%emt 0:00:10]} 7. Qc2 {[%emt 0:00:27]} b6 {[%emt 0:00:07]} 8. Bg5 {[%emt 0:09:58]} Bb7 {[%emt 0:03:28]} 9. Nbd2 {[%emt 0:01:32]} Nbd7 {[%emt 0:01:41]} 10. e4 {[%emt 0:00:32]} Nxe4 {[%emt 0:04:17]} 1/2-1/2

[Event "55th Biel Festival MTO 2022"]
[Site "Biel"]
[Date "2022.07.15"]
[Round "3.5"]
[White "Lagarde Maxime"]
[Black "Pranav Anand"]
[Result "0-1"]
[ECO "D31"]
[WhiteElo "2631"]
[BlackElo "2463"]
[Annotator "ChessBase"]
[PlyCount "92"]
[EventDate "2022.07.13"]
[EventType "swiss"]
[EventCountry "SUI"]
[SourceTitle "playchess.com"]
[Source "ChessBase"]
[SourceQuality "1"]
[TimeControl "40/5400+30:1800+30"]

1. c4 {[%emt 0:00:18]} e6 {[%emt 0:00:13]} 2. Nc3 {[%emt 0:02:54]} d5 {[%emt 0:00:06]} 3. d4 {[%emt 0:00:04]} c6 {[%emt 0:00:04]} 4. e4 {[%emt 0:00:32]} dxe4 {[%emt 0:00:14]} 5. Nxe4 {[%emt 0:00:05]} Bb4+ {[%emt 0:00:04]} 6. Bd2 {[%emt 0:00:03]} Qxd4 {[%emt 0:00:14]} 7. Bxb4 {[%emt 0:00:06]} Qxe4+ {[%emt 0:00:03]} 8. Be2 {[%emt 0:00:07]} Na6 {[%emt 0:02:24]} 9. Bd6 {[%emt 0:00:07]} Qxg2 {[%emt 0:22:25]} 10. Qd2 {[%emt 0:00:07]} e5 {[%emt 0:03:12]} 11. Bf3 {[%emt 0:35:44]} Qg6 {[%emt 0:00:41]} 12. Rd1 {[%emt 0:02:27]} Bf5 {[%emt 0:13:18]} 13. Bxe5 {[%emt 0:10:11]} Qe6 {[%emt 0:09:28]} 14. Qe3 {[%emt 0:02:45]} f6 {[%emt 0:05:42]} 15. Bc3 {[%emt 0:02:26]} Qxe3+ {[%emt 0:02:27]} 16. fxe3 {[%emt 0:00:04]} Nc5 {[%emt 0:02:12]} 17. Ne2 {[%emt 0:01:08]} Nd3+ {[%emt 0:04:33]} 18. Kf1 {[%emt 0:00:03]} Ne5 {[%emt 0:01:40]} 19. Ng3 {[%emt 0:01:25]} Be6 {[%emt 0:03:37]} 20. Kf2 {[%emt 0:05:39]} Nh6 {[%emt 0:07:39]} 21. Nh5 {[%emt 0:04:23]} Kf7 {[%emt 0:01:47]} 22. Rhg1 {[%emt 0:10:11]} Nhg4+ {[%emt 0:01:40]} 23. Bxg4 {[%emt 0:03:17]} Bxg4 {[%emt 0:00:25]} 24. Rxg4 {[%emt 0:01:01]} Nxg4+ {[%emt 0:00:39]} 25. Kf3 {[%emt 0:00:09]} Ne5+ {[%emt 0:01:37]} 26. Bxe5 {[%emt 0:00:09]} fxe5 {[%emt 0:00:03]} 27. Rd7+ {[%emt 0:00:03]} Ke6 {[%emt 0:04:28]} 28. Rxg7 {[%emt 0:01:50]} Rhg8 {[%emt 0:02:12]} 29. Rxb7 {[%emt 0:00:31]} Raf8+ {[%emt 0:00:06]} 30. Ke4 {[%emt 0:00:26]} Rf7 {[%emt 0:00:13]} 31. Rxf7 {[%emt 0:01:18]} Kxf7 {[%emt 0:00:05]} 32. Ng3 {[%emt 0:02:08]} Ke6 {[%emt 0:00:05]} 33. b3 {[%emt 0:00:03]} Rf8 {[%emt 0:00:18]} 34. Nh5 {[%emt 0:01:11]} Rf2 {[%emt 0:00:49]} 35. Ng7+ {[%emt 0:00:04]} Kf7 {[%emt 0:00:08]} 36. Nf5 {[%emt 0:00:06]} Kf6 {[%emt 0:00:39]} 37. Nh6 {[%emt 0:00:25]} Kg5 {[%emt 0:00:19]} 38. Ng8 {[%emt 0:00:04]} Rf7 {[%emt 0:00:06]} 39. Kxe5 {[%emt 0:00:13]} Rg7 {[%emt 0:00:04]} 40. Kd6 {[%emt 0:00:53]} Rxg8 {[%emt 0:00:06]} 41. Kxc6 {[%emt 0:30:04]} Re8 {[%emt 0:31:13]} 42. b4 {[%emt 0:03:33]} Rxe3 {[%emt 0:00:10]} 43. a4 {[%emt 0:00:09]} Rh3 {[%emt 0:03:46]} 44. a5 {[%emt 0:01:36]} Rxh2 {[%emt 0:00:04]} 45. Kb7 {[%emt 0:02:10]} h5 {[%emt 0:01:05]} 46. b5 {[%emt 0:03:57]} h4 {[%emt 0:00:10]} 0-1